[Event "*** Titled Tuesday Blitz"]
[Site "Chess.com"]
[Date "2020.05.26"]
[Round "10"]
[White "Roenko_Artur"]
[Black "talaicito"]
[Result "1-0"]
[WhiteElo "2281"]
[BlackElo "2150"]
[TimeControl "180+1"]
[EndTime "12:03:09 PDT"]
[Termination "Roenko_Artur won by checkmate"]

1. e4 {[%clk 0:03:00.9]} 1... e6 {[%clk 0:02:59.6]} 2. d4 {[%clk 0:03:00.1]}
2... d5 {[%clk 0:02:59.6]} 3. Nd2 {[%clk 0:03:00.3]} 3... Nf6 {[%clk 0:02:59.1]}
4. e5 {[%clk 0:03:00.5]} 4... Nfd7 {[%clk 0:02:59.3]} 5. Bd3 {[%clk 0:02:59.7]}
5... c5 {[%clk 0:03:00.2]} 6. c3 {[%clk 0:02:59.9]} 6... Nc6 {[%clk 0:03:01.1]}
7. Ne2 {[%clk 0:02:59.2]} 7... cxd4 {[%clk 0:03:01.5]} 8. cxd4 {[%clk
0:02:58.9]} 8... f6 {[%clk 0:03:02.2]} 9. Nf4 {[%clk 0:02:58.5]} 9... Nxd4
{[%clk 0:03:01.3]} 10. Qh5+ {[%clk 0:02:57]} 10... Ke7 {[%clk 0:02:59]} 11. Ng6+
{[%clk 0:02:56.2]} 11... hxg6 {[%clk 0:02:57.1]} 12. exf6+ {[%clk 0:02:55.4]}
12... Nxf6 {[%clk 0:02:57.5]} 13. Qxh8 {[%clk 0:02:55.5]} 13... Kf7 {[%clk
0:02:56.9]} 14. O-O {[%clk 0:02:52.3]} 14... e5 {[%clk 0:02:53.8]} 15. Nf3
{[%clk 0:02:44.3]} 15... Nxf3+ {[%clk 0:02:24.9]} 16. gxf3 {[%clk 0:02:43.9]}
16... Bf5 {[%clk 0:01:56.3]} 17. Rd1 {[%clk 0:02:25.8]} 17... Qd7 {[%clk
0:01:41.3]} 18. Bg5 {[%clk 0:02:09]} 18... Rd8 {[%clk 0:01:40.3]} 19. Qh4 {[%clk
0:02:00.9]} 19... Be7 {[%clk 0:01:34.4]} 20. Rac1 {[%clk 0:01:53]} 20... Kg8
{[%clk 0:01:10.2]} 21. Bc2 {[%clk 0:01:52.1]} 21... d4 {[%clk 0:00:57.6]} 22.
Bb3+ {[%clk 0:01:47.3]} 22... Be6 {[%clk 0:00:53.9]} 23. Bxf6 {[%clk 0:01:24.2]}
23... Bxf6 {[%clk 0:00:52]} 24. Qe4 {[%clk 0:01:23.3]} 24... Bxb3 {[%clk
0:00:44]} 25. axb3 {[%clk 0:01:23]} 25... Kf7 {[%clk 0:00:38.4]} 26. Rc4 {[%clk
0:01:09.5]} 26... b5 {[%clk 0:00:29.9]} 27. Rc5 {[%clk 0:01:03]} 27... Rc8
{[%clk 0:00:29.7]} 28. Rdc1 {[%clk 0:00:58]} 28... Rxc5 {[%clk 0:00:29.6]} 29.
Rxc5 {[%clk 0:00:58.2]} 29... d3 {[%clk 0:00:28.1]} 30. Rd5 {[%clk 0:00:56.2]}
30... Qc7 {[%clk 0:00:27.9]} 31. Qxd3 {[%clk 0:00:41.5]} 31... Qc1+ {[%clk
0:00:27]} 32. Qf1 {[%clk 0:00:33.6]} 32... Qg5+ {[%clk 0:00:20.2]} 33. Kh1
{[%clk 0:00:33.6]} 33... Qf4 {[%clk 0:00:19.6]} 34. Qd1 {[%clk 0:00:24.5]} 34...
e4 {[%clk 0:00:15.8]} 35. Rd7+ {[%clk 0:00:23.1]} 35... Kf8 {[%clk 0:00:12]} 36.
fxe4 {[%clk 0:00:14.7]} 36... Be5 {[%clk 0:00:11.1]} 37. Rd8+ {[%clk 0:00:14.6]}
37... Kf7 {[%clk 0:00:11.4]} 38. Qd7+ {[%clk 0:00:14]} 38... Kf6 {[%clk
0:00:11.6]} 39. Rf8+ {[%clk 0:00:14.1]} 39... Kg5 {[%clk 0:00:10.3]} 40. Rxf4
{[%clk 0:00:15]} 40... Bxf4 {[%clk 0:00:10.6]} 41. Qe6 {[%clk 0:00:14.8]} 41...
b4 {[%clk 0:00:09.7]} 42. Qd5+ {[%clk 0:00:14]} 42... Kg4 {[%clk 0:00:09.4]} 43.
Kg2 {[%clk 0:00:13.8]} 43... g5 {[%clk 0:00:08.7]} 44. f3+ {[%clk 0:00:13.4]}
44... Kh5 {[%clk 0:00:08.9]} 45. h3 {[%clk 0:00:13.2]} 45... Kh4 {[%clk
0:00:08.7]} 46. Qg8 {[%clk 0:00:13.1]} 46... Kh5 {[%clk 0:00:06.8]} 47. Qh7#
{[%clk 0:00:13.2]} 1-0

[Event "*** Titled Tuesday Blitz"]
[Site "Chess.com"]
[Date "2020.05.26"]
[Round "10"]
[White "LostaBet95"]
[Black "MikeSailer"]
[Result "1-0"]
[WhiteElo "2516"]
[BlackElo "2084"]
[TimeControl "180+1"]
[EndTime "12:03:13 PDT"]
[Termination "LostaBet95 won on time"]

1. e4 {[%clk 0:02:55.4]} 1... d5 {[%clk 0:02:59.3]} 2. exd5 {[%clk 0:02:54.8]}
2... Qxd5 {[%clk 0:02:57.7]} 3. Nc3 {[%clk 0:02:54.6]} 3... Qd6 {[%clk
0:02:58.1]} 4. d4 {[%clk 0:02:55.5]} 4... Nf6 {[%clk 0:02:58.7]} 5. Nf3 {[%clk
0:02:55.5]} 5... c6 {[%clk 0:02:59.3]} 6. g3 {[%clk 0:02:54.4]} 6... Bf5 {[%clk
0:02:59.2]} 7. Bg2 {[%clk 0:02:52.9]} 7... e6 {[%clk 0:02:59.8]} 8. O-O {[%clk
0:02:52.6]} 8... Be7 {[%clk 0:03:00.5]} 9. Bf4 {[%clk 0:02:49]} 9... Qd8 {[%clk
0:03:00.6]} 10. Nh4 {[%clk 0:02:46.9]} 10... Bg4 {[%clk 0:03:00.4]} 11. f3
{[%clk 0:02:46.5]} 11... Bh5 {[%clk 0:03:00.8]} 12. g4 {[%clk 0:02:46]} 12...
Nfd7 {[%clk 0:02:53.1]} 13. gxh5 {[%clk 0:02:41]} 13... Bxh4 {[%clk 0:02:53.3]}
14. h6 {[%clk 0:02:39.9]} 14... gxh6 {[%clk 0:02:51.9]} 15. Bxh6 {[%clk
0:02:36.6]} 15... Rg8 {[%clk 0:02:52.5]} 16. Kh1 {[%clk 0:02:35.3]} 16... Qf6
{[%clk 0:02:52.3]} 17. Qd2 {[%clk 0:02:32.3]} 17... Na6 {[%clk 0:02:44]} 18. Ne4
{[%clk 0:02:31.2]} 18... Qe7 {[%clk 0:02:32.4]} 19. Qf4 {[%clk 0:02:21.8]} 19...
Nb6 {[%clk 0:01:54.3]} 20. Nd6+ {[%clk 0:02:11.7]} 20... Kd7 {[%clk 0:01:54.3]}
21. Nxf7 {[%clk 0:01:58.4]} 21... Nd5 {[%clk 0:01:41.6]} 22. Ne5+ {[%clk
0:01:54.6]} 22... Ke8 {[%clk 0:01:32.6]} 23. Qd2 {[%clk 0:01:50.2]} 23... Qf6
{[%clk 0:01:05.6]} 24. c4 {[%clk 0:01:43.9]} 24... Ne7 {[%clk 0:01:00.8]} 25.
Bh3 {[%clk 0:01:26.4]} 25... Nf5 {[%clk 0:00:53.7]} 26. Bf4 {[%clk 0:01:18.1]}
26... Rd8 {[%clk 0:00:48.6]} 27. Rg1 {[%clk 0:00:55.3]} 27... Rxg1+ {[%clk
0:00:40.6]} 28. Rxg1 {[%clk 0:00:56.2]} 28... Rxd4 {[%clk 0:00:40.6]} 29. Qc1
{[%clk 0:00:19.5]} 29... Nc5 {[%clk 0:00:26.3]} 30. Bg4 {[%clk 0:00:14.8]} 30...
Nd3 {[%clk 0:00:20.5]} 31. Bh5+ {[%clk 0:00:13.7]} 31... Ke7 {[%clk 0:00:20]}
32. Nxd3 {[%clk 0:00:12.9]} 32... Rxd3 {[%clk 0:00:20.4]} 33. c5 {[%clk
0:00:07.6]} 33... Nd4 {[%clk 0:00:13.1]} 34. Bd6+ {[%clk 0:00:05.3]} 34... Kd7
{[%clk 0:00:13]} 35. Qf1 {[%clk 0:00:04.4]} 35... Qf5 {[%clk 0:00:12.5]} 36. Bg4
{[%clk 0:00:04.4]} 36... Qd5 {[%clk 0:00:11.3]} 37. Qxd3 {[%clk 0:00:03.9]} 1-0

[Event "*** Titled Tuesday Blitz"]
[Site "Chess.com"]
[Date "2020.05.26"]
[Round "10"]
[White "Keks2017"]
[Black "Orest_Vovk"]
[Result "1-0"]
[WhiteElo "2555"]
[BlackElo "2432"]
[TimeControl "180+1"]
[EndTime "12:03:15 PDT"]
[Termination "Keks2017 won on time"]

1. g3 {[%clk 0:02:47.6]} 1... Nf6 {[%clk 0:02:58.1]} 2. Bg2 {[%clk 0:02:46.5]}
2... g5 {[%clk 0:02:57.3]} 3. c4 {[%clk 0:02:44.7]} 3... g4 {[%clk 0:02:55.4]}
4. Nc3 {[%clk 0:02:44.6]} 4... h5 {[%clk 0:02:55.3]} 5. e3 {[%clk 0:02:43.2]}
5... h4 {[%clk 0:02:55]} 6. Nge2 {[%clk 0:02:43.3]} 6... h3 {[%clk 0:02:53.2]}
7. Bf1 {[%clk 0:02:43.3]} 7... b6 {[%clk 0:02:51.6]} 8. d4 {[%clk 0:02:43.1]}
8... Bb7 {[%clk 0:02:51.4]} 9. Rg1 {[%clk 0:02:43]} 9... Bf3 {[%clk 0:02:49.5]}
10. Qc2 {[%clk 0:02:42.4]} 10... Nc6 {[%clk 0:02:42.5]} 11. a3 {[%clk
0:02:42.2]} 11... e5 {[%clk 0:02:40.2]} 12. d5 {[%clk 0:02:40.1]} 12... Na5
{[%clk 0:02:29]} 13. b3 {[%clk 0:02:37.3]} 13... d6 {[%clk 0:02:13.9]} 14. Bb2
{[%clk 0:02:35.7]} 14... Bh6 {[%clk 0:02:07.8]} 15. Nc1 {[%clk 0:02:34.8]} 15...
Nb7 {[%clk 0:01:55.3]} 16. b4 {[%clk 0:02:32.2]} 16... a5 {[%clk 0:01:54.8]} 17.
Be2 {[%clk 0:02:31.9]} 17... axb4 {[%clk 0:01:46]} 18. axb4 {[%clk 0:02:30.8]}
18... Rxa1 {[%clk 0:01:45.9]} 19. Bxa1 {[%clk 0:02:30.7]} 19... Rg8 {[%clk
0:01:30.7]} 20. Bb2 {[%clk 0:02:23.5]} 20... Qd7 {[%clk 0:01:08]} 21. Bd3 {[%clk
0:02:16.7]} 21... Rg5 {[%clk 0:01:00.9]} 22. Nb3 {[%clk 0:02:16]} 22... Qe7
{[%clk 0:00:55.3]} 23. Nd2 {[%clk 0:02:12.2]} 23... Bg2 {[%clk 0:00:52.8]} 24.
Kd1 {[%clk 0:01:48.1]} 24... Kf8 {[%clk 0:00:51.5]} 25. Kc1 {[%clk 0:01:47.7]}
25... Kg7 {[%clk 0:00:49.7]} 26. Kb1 {[%clk 0:01:47.5]} 26... c6 {[%clk
0:00:46.6]} 27. dxc6 {[%clk 0:01:40]} 27... Bxc6 {[%clk 0:00:46.4]} 28. Nde4
{[%clk 0:01:39.4]} 28... Nxe4 {[%clk 0:00:44]} 29. Bxe4 {[%clk 0:01:38.9]} 29...
Nd8 {[%clk 0:00:39.6]} 30. Nd5 {[%clk 0:01:36.5]} 30... Bxd5 {[%clk 0:00:30.9]}
31. cxd5 {[%clk 0:01:36.3]} 31... f6 {[%clk 0:00:14.5]} 32. Rc1 {[%clk
0:01:35.2]} 32... Nf7 {[%clk 0:00:12.9]} 33. Qc7 {[%clk 0:01:29.5]} 33... Qxc7
{[%clk 0:00:11.3]} 34. Rxc7 {[%clk 0:01:28.9]} 34... f5 {[%clk 0:00:12.2]} 35.
Bd3 {[%clk 0:01:26.3]} 35... Kf6 {[%clk 0:00:10.8]} 36. Rb7 {[%clk 0:01:24.1]}
36... Rg8 {[%clk 0:00:10.2]} 37. Rxb6 {[%clk 0:01:23.5]} 37... Rd8 {[%clk
0:00:08.9]} 38. Bc3 {[%clk 0:00:48.5]} 38... Ng5 {[%clk 0:00:08.2]} 39. Be2
{[%clk 0:00:48.5]} 39... Ne4 {[%clk 0:00:05.2]} 40. Be1 {[%clk 0:00:48.3]} 40...
f4 {[%clk 0:00:03.8]} 41. exf4 {[%clk 0:00:45.7]} 41... exf4 {[%clk 0:00:02.8]}
42. Bxg4 {[%clk 0:00:45.6]} 42... fxg3 {[%clk 0:00:03]} 43. fxg3 {[%clk
0:00:43.9]} 43... Be3 {[%clk 0:00:02.1]} 44. Rb7 {[%clk 0:00:43.7]} 44... Bf2
{[%clk 0:00:01.6]} 45. Bxf2 {[%clk 0:00:39.6]} 45... Nxf2 {[%clk 0:00:02.5]} 46.
Be6 {[%clk 0:00:39.5]} 46... Ke5 {[%clk 0:00:02.7]} 47. Kc2 {[%clk 0:00:36.2]}
47... Ne4 {[%clk 0:00:02.3]} 48. Rh7 {[%clk 0:00:30.8]} 48... Kd4 {[%clk
0:00:01.1]} 49. Rxh3 {[%clk 0:00:27.8]} 1-0

[Event "*** Titled Tuesday Blitz"]
[Site "Chess.com"]
[Date "2020.05.26"]
[Round "10"]
[White "GMJustin"]
[Black "BlackWidow515"]
[Result "0-1"]
[WhiteElo "2300"]
[BlackElo "2158"]
[TimeControl "180+1"]
[EndTime "12:03:15 PDT"]
[Termination "BlackWidow515 won on time"]

1. e4 {[%clk 0:02:50.4]} 1... e5 {[%clk 0:02:56.6]} 2. Bc4 {[%clk 0:02:42]} 2...
Nf6 {[%clk 0:02:46]} 3. d3 {[%clk 0:02:39.3]} 3... Nc6 {[%clk 0:02:46]} 4. Nc3
{[%clk 0:02:39]} 4... Be7 {[%clk 0:02:45.4]} 5. f4 {[%clk 0:02:19]} 5... exf4
{[%clk 0:02:43.9]} 6. Bxf4 {[%clk 0:02:16.9]} 6... d6 {[%clk 0:02:43.9]} 7. Nf3
{[%clk 0:02:12.2]} 7... O-O {[%clk 0:02:41.2]} 8. O-O {[%clk 0:02:10.8]} 8...
Be6 {[%clk 0:02:37.9]} 9. Bb5 {[%clk 0:01:54.2]} 9... a6 {[%clk 0:02:36.9]} 10.
Ba4 {[%clk 0:01:30]} 10... Nd7 {[%clk 0:01:46.4]} 11. d4 {[%clk 0:01:25.2]}
11... b5 {[%clk 0:01:43.4]} 12. Bb3 {[%clk 0:01:20.8]} 12... Bxb3 {[%clk
0:01:43.5]} 13. axb3 {[%clk 0:01:20.6]} 13... Bf6 {[%clk 0:01:42.2]} 14. Nd5
{[%clk 0:01:17.2]} 14... Re8 {[%clk 0:01:41.7]} 15. Qd3 {[%clk 0:01:09.9]} 15...
Ne7 {[%clk 0:01:39.9]} 16. Nxf6+ {[%clk 0:01:06.2]} 16... Nxf6 {[%clk 0:01:40]}
17. Rae1 {[%clk 0:01:04]} 17... Ng6 {[%clk 0:01:34.4]} 18. Bg5 {[%clk
0:01:01.3]} 18... h6 {[%clk 0:01:33.7]} 19. Bd2 {[%clk 0:00:53.7]} 19... Qd7
{[%clk 0:01:32.3]} 20. h3 {[%clk 0:00:26.6]} 20... Qc6 {[%clk 0:01:31.5]} 21. d5
{[%clk 0:00:21.3]} 21... Qd7 {[%clk 0:01:27.2]} 22. Bc3 {[%clk 0:00:20.6]} 22...
Nh5 {[%clk 0:01:25.9]} 23. Qd4 {[%clk 0:00:18.1]} 23... Ne5 {[%clk 0:01:22.1]}
24. Nxe5 {[%clk 0:00:17.1]} 24... dxe5 {[%clk 0:01:22.1]} 25. Qf2 {[%clk
0:00:16.5]} 25... f6 {[%clk 0:01:20.2]} 26. Kh2 {[%clk 0:00:16.2]} 26... Nf4
{[%clk 0:01:19.3]} 27. Bd2 {[%clk 0:00:16]} 27... g5 {[%clk 0:01:18.4]} 28. Be3
{[%clk 0:00:11]} 28... c6 {[%clk 0:01:14.7]} 29. dxc6 {[%clk 0:00:10.3]} 29...
Qxc6 {[%clk 0:01:14.5]} 30. Bxf4 {[%clk 0:00:07.8]} 30... exf4 {[%clk
0:01:14.3]} 31. g3 {[%clk 0:00:07.7]} 31... Rxe4 {[%clk 0:01:12.6]} 32. Rxe4
{[%clk 0:00:06.8]} 32... Qxe4 {[%clk 0:01:12.7]} 33. gxf4 {[%clk 0:00:07.3]}
33... Qxf4+ {[%clk 0:01:08]} 34. Qxf4 {[%clk 0:00:07.4]} 34... gxf4 {[%clk
0:01:08.3]} 35. Rxf4 {[%clk 0:00:07.8]} 35... Kf7 {[%clk 0:01:08.6]} 36. c4
{[%clk 0:00:07.7]} 36... Rd8 {[%clk 0:01:07]} 37. Kg3 {[%clk 0:00:07.2]} 37...
Rd3+ {[%clk 0:01:06.3]} 38. Rf3 {[%clk 0:00:05]} 38... Rd2 {[%clk 0:01:05.5]}
39. cxb5 {[%clk 0:00:04.3]} 39... axb5 {[%clk 0:01:05.6]} 40. Rf5 {[%clk
0:00:04.9]} 40... Rd3+ {[%clk 0:01:04.5]} 41. Kg4 {[%clk 0:00:05]} 41... Rxb3
{[%clk 0:01:03.9]} 42. Rf2 {[%clk 0:00:05.1]} 42... Kg6 {[%clk 0:01:03.5]} 43.
h4 {[%clk 0:00:05]} 43... Rb4+ {[%clk 0:01:03.9]} 44. Kg3 {[%clk 0:00:04.9]}
44... f5 {[%clk 0:01:04]} 45. Rd2 {[%clk 0:00:04.2]} 45... Kh5 {[%clk
0:00:58.6]} 46. Rd5 {[%clk 0:00:02.3]} 46... Rg4+ {[%clk 0:00:55.3]} 47. Kf3
{[%clk 0:00:02.4]} 47... Kxh4 {[%clk 0:00:54.8]} 48. Rxf5 {[%clk 0:00:02.6]}
48... Rb4 {[%clk 0:00:55.3]} 49. Rf6 {[%clk 0:00:02]} 49... h5 {[%clk
0:00:55.1]} 50. Rf4+ {[%clk 0:00:01.5]} 50... Rxf4+ {[%clk 0:00:55]} 51. Kxf4
{[%clk 0:00:01.5]} 51... b4 {[%clk 0:00:54.3]} 0-1

[Event "*** Titled Tuesday Blitz"]
[Site "Chess.com"]
[Date "2020.05.26"]
[Round "10"]
[White "Djager97"]
[Black "PetrolulSah"]
[Result "1-0"]
[WhiteElo "2369"]
[BlackElo "2198"]
[TimeControl "180+1"]
[EndTime "12:03:15 PDT"]
[Termination "Djager97 won on time"]

1. e4 {[%clk 0:03:00.9]} 1... e5 {[%clk 0:02:59.5]} 2. Nf3 {[%clk 0:03:01]} 2...
Nf6 {[%clk 0:02:59.3]} 3. Nc3 {[%clk 0:03:00.6]} 3... Bb4 {[%clk 0:02:58.6]} 4.
Be2 {[%clk 0:02:51.2]} 4... O-O {[%clk 0:02:55.4]} 5. O-O {[%clk 0:02:48.9]}
5... d6 {[%clk 0:02:54.5]} 6. Nd5 {[%clk 0:02:45]} 6... Nxd5 {[%clk 0:02:53]} 7.
exd5 {[%clk 0:02:45.3]} 7... e4 {[%clk 0:02:50.8]} 8. Nd4 {[%clk 0:02:45.3]}
8... Qg5 {[%clk 0:02:49.8]} 9. d3 {[%clk 0:02:02.7]} 9... Qxd5 {[%clk
0:02:46.3]} 10. dxe4 {[%clk 0:02:02.7]} 10... Qxe4 {[%clk 0:02:44.5]} 11. Bd3
{[%clk 0:01:59.8]} 11... Qg4 {[%clk 0:02:39.8]} 12. Be2 {[%clk 0:01:59.6]} 12...
Qg6 {[%clk 0:02:32.9]} 13. Bd3 {[%clk 0:01:59.1]} 13... Qf6 {[%clk 0:02:32]} 14.
Nb5 {[%clk 0:01:50.8]} 14... Na6 {[%clk 0:02:29.2]} 15. Qh5 {[%clk 0:01:47.8]}
15... g6 {[%clk 0:02:26.3]} 16. Qh6 {[%clk 0:01:47.6]} 16... Qg7 {[%clk
0:02:17.7]} 17. Qh4 {[%clk 0:01:46.4]} 17... Re8 {[%clk 0:02:08.3]} 18. Nxc7
{[%clk 0:01:42.3]} 18... Nxc7 {[%clk 0:02:02]} 19. Qxb4 {[%clk 0:01:42.4]} 19...
d5 {[%clk 0:01:45.2]} 20. Bd2 {[%clk 0:01:37.7]} 20... Ne6 {[%clk 0:01:38.8]}
21. Rfe1 {[%clk 0:01:33.2]} 21... Qf8 {[%clk 0:01:35]} 22. Qh4 {[%clk
0:01:32.2]} 22... Qe7 {[%clk 0:01:32.3]} 23. Qh6 {[%clk 0:01:29.1]} 23... Qf8
{[%clk 0:01:29.3]} 24. Qh4 {[%clk 0:01:21.8]} 24... Qe7 {[%clk 0:01:28.3]} 25.
Qg3 {[%clk 0:01:20.2]} 25... Bd7 {[%clk 0:01:15.4]} 26. Bc3 {[%clk 0:01:19.8]}
26... Bc6 {[%clk 0:00:41.5]} 27. Qe5 {[%clk 0:01:17.5]} 27... f6 {[%clk
0:00:30.5]} 28. Qxf6 {[%clk 0:01:17.5]} 28... Qxf6 {[%clk 0:00:30.3]} 29. Bxf6
{[%clk 0:01:18.4]} 29... Kf7 {[%clk 0:00:29.5]} 30. Be5 {[%clk 0:01:18]} 30...
Nc5 {[%clk 0:00:29.3]} 31. Bf1 {[%clk 0:01:11.9]} 31... Ne4 {[%clk 0:00:28.5]}
32. Bd4 {[%clk 0:01:12.5]} 32... a6 {[%clk 0:00:24.7]} 33. c3 {[%clk 0:01:12.4]}
33... Nd6 {[%clk 0:00:24]} 34. f3 {[%clk 0:01:05.2]} 34... Nc4 {[%clk 0:00:22]}
35. b3 {[%clk 0:01:02.8]} 35... Nd6 {[%clk 0:00:20.9]} 36. Kf2 {[%clk
0:01:00.5]} 36... Rac8 {[%clk 0:00:20.2]} 37. Rxe8 {[%clk 0:01:00.6]} 37... Rxe8
{[%clk 0:00:19.6]} 38. Re1 {[%clk 0:01:01.5]} 38... Rxe1 {[%clk 0:00:19.4]} 39.
Kxe1 {[%clk 0:01:01.2]} 39... Nb5 {[%clk 0:00:19.5]} 40. Kd2 {[%clk 0:01:00.6]}
40... Nd6 {[%clk 0:00:11.7]} 41. Ke3 {[%clk 0:00:52.9]} 41... Nf5+ {[%clk
0:00:11.3]} 42. Kf4 {[%clk 0:00:52.9]} 42... Nd6 {[%clk 0:00:10.5]} 43. Bd3
{[%clk 0:00:52.4]} 43... Ke6 {[%clk 0:00:08.5]} 44. h4 {[%clk 0:00:49.9]} 44...
Nf5 {[%clk 0:00:07.4]} 45. h5 {[%clk 0:00:46.2]} 45... Ne7 {[%clk 0:00:07.4]}
46. Bc5 {[%clk 0:00:40.2]} 46... Nf5 {[%clk 0:00:05.4]} 47. g4 {[%clk
0:00:37.7]} 47... Nh4 {[%clk 0:00:02.2]} 48. Bf2 {[%clk 0:00:33.7]} 1-0

[Event "*** Titled Tuesday Blitz"]
[Site "Chess.com"]
[Date "2020.05.26"]
[Round "10"]
[White "lelajavakhishvili"]
[Black "GMNickPert"]
[Result "1-0"]
[WhiteElo "2525"]
[BlackElo "2639"]
[TimeControl "180+1"]
[EndTime "12:03:16 PDT"]
[Termination "lelajavakhishvili won on time"]

1. d4 {[%clk 0:03:00.9]} 1... d5 {[%clk 0:02:57.9]} 2. c4 {[%clk 0:02:58.8]}
2... c6 {[%clk 0:02:58.2]} 3. Nf3 {[%clk 0:02:58]} 3... Nf6 {[%clk 0:02:58.3]}
4. e3 {[%clk 0:02:56.8]} 4... Bf5 {[%clk 0:02:57.5]} 5. Nc3 {[%clk 0:02:55.4]}
5... e6 {[%clk 0:02:57.8]} 6. Nh4 {[%clk 0:02:53.3]} 6... Be4 {[%clk 0:02:56.7]}
7. Qb3 {[%clk 0:02:52.1]} 7... Qc7 {[%clk 0:02:55.4]} 8. f3 {[%clk 0:02:51.2]}
8... Bg6 {[%clk 0:02:55.1]} 9. Bd2 {[%clk 0:02:50.4]} 9... Be7 {[%clk
0:02:54.7]} 10. g3 {[%clk 0:02:43.4]} 10... O-O {[%clk 0:02:45.8]} 11. Rc1
{[%clk 0:02:37.2]} 11... Qb6 {[%clk 0:02:40.4]} 12. Nxg6 {[%clk 0:02:34.7]}
12... hxg6 {[%clk 0:02:39.6]} 13. Qc2 {[%clk 0:02:34.6]} 13... Nbd7 {[%clk
0:02:37]} 14. c5 {[%clk 0:02:26.4]} 14... Qc7 {[%clk 0:02:36.5]} 15. f4 {[%clk
0:02:26.4]} 15... b6 {[%clk 0:02:24.1]} 16. b4 {[%clk 0:02:05.8]} 16... a5
{[%clk 0:02:06.7]} 17. cxb6 {[%clk 0:01:50.4]} 17... Nxb6 {[%clk 0:02:07.3]} 18.
bxa5 {[%clk 0:01:41.6]} 18... Nc4 {[%clk 0:02:03.5]} 19. Bxc4 {[%clk 0:01:38.4]}
19... dxc4 {[%clk 0:02:04.2]} 20. Ne4 {[%clk 0:01:28.7]} 20... Ba3 {[%clk
0:01:06.6]} 21. Nxf6+ {[%clk 0:01:24.7]} 21... gxf6 {[%clk 0:01:07.5]} 22. Rb1
{[%clk 0:01:22.5]} 22... e5 {[%clk 0:00:55.8]} 23. O-O {[%clk 0:01:04.9]} 23...
exd4 {[%clk 0:00:54.9]} 24. exd4 {[%clk 0:01:05.8]} 24... f5 {[%clk 0:00:44.4]}
25. Qxc4 {[%clk 0:01:03.5]} 25... Rfd8 {[%clk 0:00:33]} 26. Bc3 {[%clk
0:00:53.3]} 26... Bf8 {[%clk 0:00:31]} 27. Rb6 {[%clk 0:00:46.7]} 27... Rd6
{[%clk 0:00:25.5]} 28. Rfb1 {[%clk 0:00:41.5]} 28... Re6 {[%clk 0:00:20.5]} 29.
d5 {[%clk 0:00:36.5]} 29... Re3 {[%clk 0:00:16.1]} 30. Qd4 {[%clk 0:00:30.6]}
30... Rxc3 {[%clk 0:00:11.7]} 31. Qxc3 {[%clk 0:00:30.6]} 31... c5 {[%clk
0:00:09.7]} 32. d6 {[%clk 0:00:24.4]} 32... Qd7 {[%clk 0:00:09.2]} 33. Qc4
{[%clk 0:00:23.3]} 33... Bxd6 {[%clk 0:00:06.6]} 34. Rd1 {[%clk 0:00:19.6]}
34... Qe7 {[%clk 0:00:06.3]} 35. Rbxd6 {[%clk 0:00:18.8]} 35... Qe3+ {[%clk
0:00:06.7]} 36. Kg2 {[%clk 0:00:19]} 36... Kg7 {[%clk 0:00:03.8]} 37. R1d2
{[%clk 0:00:18.8]} 37... Rxa5 {[%clk 0:00:02.9]} 38. Rd7 {[%clk 0:00:18.7]}
38... Kh6 {[%clk 0:00:01.9]} 39. Qxf7 {[%clk 0:00:17.8]} 1-0

[Event "*** Titled Tuesday Blitz"]
[Site "Chess.com"]
[Date "2020.05.26"]
[Round "10"]
[White "stanyga"]
[Black "Alexander_Moskalenko"]
[Result "0-1"]
[WhiteElo "2634"]
[BlackElo "2807"]
[TimeControl "180+1"]
[EndTime "12:03:17 PDT"]
[Termination "Alexander_Moskalenko won by resignation"]

1. d4 {[%clk 0:03:00.9]} 1... e6 {[%clk 0:02:56.4]} 2. e4 {[%clk 0:02:58.5]}
2... d5 {[%clk 0:02:56.1]} 3. e5 {[%clk 0:02:55.9]} 3... c5 {[%clk 0:02:55.4]}
4. c3 {[%clk 0:02:55.6]} 4... Qb6 {[%clk 0:02:54.4]} 5. Nf3 {[%clk 0:02:54.7]}
5... Bd7 {[%clk 0:02:53.8]} 6. a3 {[%clk 0:02:53.9]} 6... c4 {[%clk 0:02:53.9]}
7. Nbd2 {[%clk 0:02:52.8]} 7... Nc6 {[%clk 0:02:48.1]} 8. Be2 {[%clk 0:02:51.8]}
8... Na5 {[%clk 0:02:47.9]} 9. O-O {[%clk 0:02:50.2]} 9... Ne7 {[%clk
0:02:48.1]} 10. Re1 {[%clk 0:02:49.6]} 10... Qc7 {[%clk 0:02:47.8]} 11. Rb1
{[%clk 0:02:47.8]} 11... Nc8 {[%clk 0:02:47.3]} 12. Nf1 {[%clk 0:02:45]} 12...
Nb6 {[%clk 0:02:46.6]} 13. Bf4 {[%clk 0:02:42]} 13... f5 {[%clk 0:02:26.6]} 14.
Qd2 {[%clk 0:02:24.9]} 14... h6 {[%clk 0:02:25.8]} 15. Nh4 {[%clk 0:01:55.3]}
15... g5 {[%clk 0:01:08.5]} 16. Bh5+ {[%clk 0:01:49]} 16... Kd8 {[%clk
0:01:08.7]} 17. Ng6 {[%clk 0:01:42]} 17... Rg8 {[%clk 0:01:06.2]} 18. Bxg5+
{[%clk 0:01:41.1]} 18... hxg5 {[%clk 0:01:07.1]} 19. Qxg5+ {[%clk 0:01:40.4]}
19... Kc8 {[%clk 0:01:07.7]} 20. Ne7+ {[%clk 0:01:32.3]} 20... Bxe7 {[%clk
0:01:07.4]} 21. Qxg8+ {[%clk 0:01:32.7]} 21... Qd8 {[%clk 0:01:08.3]} 22. Qxd8+
{[%clk 0:01:24.1]} 22... Kxd8 {[%clk 0:01:07.3]} 23. f4 {[%clk 0:01:22.7]} 23...
Ba4 {[%clk 0:01:02.4]} 24. Ne3 {[%clk 0:01:20.9]} 24... Kd7 {[%clk 0:00:56.7]}
25. Kf2 {[%clk 0:01:17.5]} 25... Rh8 {[%clk 0:00:56.9]} 26. Bf3 {[%clk
0:01:12.5]} 26... Rxh2 {[%clk 0:00:55.4]} 27. Rh1 {[%clk 0:01:12.3]} 27... Bh4+
{[%clk 0:00:49.9]} 28. Ke2 {[%clk 0:01:11.6]} 28... Bg3 {[%clk 0:00:44.7]} 29.
Rxh2 {[%clk 0:01:10.5]} 29... Bxh2 {[%clk 0:00:45.6]} 30. g4 {[%clk 0:01:00.7]}
30... fxg4 {[%clk 0:00:31.2]} 31. Bxg4 {[%clk 0:00:57.2]} 31... Bxf4 {[%clk
0:00:30.3]} 32. Rf1 {[%clk 0:00:56]} 32... Bxe3 {[%clk 0:00:30.5]} 33. Kxe3
{[%clk 0:00:50.8]} 33... Ke7 {[%clk 0:00:30.6]} 34. Rf6 {[%clk 0:00:46.6]} 34...
Bd7 {[%clk 0:00:30.9]} 35. Rh6 {[%clk 0:00:46]} 35... Nc6 {[%clk 0:00:23.9]} 36.
Rh7+ {[%clk 0:00:43.4]} 36... Ke8 {[%clk 0:00:23.5]} 37. Rh6 {[%clk 0:00:40.2]}
37... Ke7 {[%clk 0:00:23.5]} 38. Rh7+ {[%clk 0:00:39.6]} 38... Kd8 {[%clk
0:00:23.9]} 39. Rh6 {[%clk 0:00:38.4]} 39... Na4 {[%clk 0:00:24.1]} 40. Bxe6
{[%clk 0:00:36.4]} 40... Bxe6 {[%clk 0:00:18.8]} 41. Rxe6 {[%clk 0:00:35.6]}
41... Ne7 {[%clk 0:00:19.7]} 42. Kf4 {[%clk 0:00:30.8]} 42... Nxb2 {[%clk
0:00:18.1]} 43. Kg5 {[%clk 0:00:30.6]} 43... Nd1 {[%clk 0:00:12.2]} 44. Kf6
{[%clk 0:00:30.2]} 44... Nc6 {[%clk 0:00:12.8]} 45. Rd6+ {[%clk 0:00:29.8]}
45... Kc7 {[%clk 0:00:13.4]} 46. Rxd5 {[%clk 0:00:29]} 46... Nxc3 {[%clk
0:00:13.3]} 47. Rc5 {[%clk 0:00:22]} 47... Ne4+ {[%clk 0:00:13.2]} 0-1